Cogmind - Beta 15 @@@ ROGUE MODE // 2025.07.27 @ 11:43:25 Player: Fazzonamite Result: Destroyed by ZK-SVK(R) with Subdweller Beam Cannon Performance ------------- Evolutions (0) 0 Regions Visited (2) 400 Robots Destroyed (5) 25 Value Destroyed (73) 73 Prototype IDs (0) 0 Alien Tech Used (0) 0 Bonus (0) 0 TOTAL SCORE: 498 Bonus ------- None Cogmind --------- Core Integrity 0/250 Matter 234/300 Energy 221/250 System Corruption 0% Temperature Cool (9) Movement Treading (320) Ox2 Location -10/Subcaves Parts ------- > --- POWER (1) -------- Ion Engine > --- PROPULSION (2) --- Light Treads Light Treads > --- UTILITY (2) ------ Huge Storage Unit Core Shielding > --- WEAPON (2) ------- Small Laser Light Assault Rifle > --- INVENTORY (25) --- Ion Engine Light Ion Engine Light Ion Engine Wheel Wheel Compact Wheel Medium Storage Unit Large Matter Pod (27) Structural Scanner Sensor Array Signal Interpreter Signal Interpreter Improved Terrain Scanner Transport Network Coupler Core Shielding Riot Gun Mining Laser Peak State ------------ > --- POWER ------------ Light Ion Engine > --- PROPULSION ------- Light Treads Compact Wheel > --- UTILITY ---------- Huge Storage Unit Improved Terrain Scanner > --- WEAPON ----------- Medium Laser Small Laser > --- INVENTORY -------- Ion Engine Light Ion Engine Light Treads Wheel Wheel Medium Storage Unit Core Shielding Core Shielding Assault Rifle Light Assault Rifle [Rating: 10] Favorites ----------- Power Light Ion Engine Engine Light Ion Engine Propulsion Light Treads Treads Light Treads Wheel Compact Wheel Utility Improved Terrain Scanner Device Improved Terrain Scanner Storage Huge Storage Unit Protection Core Shielding Weapon Medium Laser Energy Gun Medium Laser Ballistic Gun Assault Rifle Special Weapon Mining Laser Build | -11 -10 -10 ------- Run | Yrd Mat Sub Slots Evolved . | . . . Power . | . . . Propulsion . | . . . Utility . | . . . Weapon . | . . . Parts Attached 16 | 6 6 4 Power 3 | 1 1 1 Engine 3 | 1 1 1 Core . | . . . Reactor . | . . . Propulsion 5 | 2 1 2 Treads 2 | 1 . 1 Leg . | . . . Wheel 3 | 1 1 1 Hover . | . . . Flight . | . . . Utility 3 | 1 1 1 Device 1 | 1 . . Storage 1 | . 1 . Processor . | . . . Hackware . | . . . Protection 1 | . . 1 Artifact . | . . . Weapon 5 | 2 3 . Energy Gun 2 | 2 . . Energy Cannon . | . . . Ballistic Gun 2 | . 2 . Ballistic Cannon . | . . . Launcher . | . . . Special Weapon 1 | . 1 . Impact Weapon . | . . . Slashing Weapon . | . . . Piercing Weapon . | . . . Special Melee Weapon . | . . . Unidentified Prototypes . | . . . Parts Lost 5 | . 5 . Power 2 | . 2 . Propulsion 1 | . 1 . Utility . | . . . Weapon 2 | . 2 . Highest Loss Streak 4 | . 4 . To Critical Strikes . | . . . Average Backups 13 | 3 13 16 Power 2 | 1 3 3 Propulsion 3 | 1 3 3 Utility 5 | . 4 9 Weapon 1 | . 2 1 Tool/Special . | . . . Unused Backups 13 | . 1 12 Power 2 | . . 2 Propulsion 1 | . . 1 Utility 9 | . 1 8 Weapon 1 | . . 1 Tool/Special . | . . . Average Slot Usage (%) 98 | . 97 99 Engine 13 | . 13 13 Treads 13 | . 14 13 Wheel 14 | . 14 14 Device 13 | . 14 13 Storage 13 | . 13 14 Energy Gun 18 | . 19 14 Ballistic Gun 9 | . 7 14 Peak Build Rating 10 | 8 10 10 Average Rating 9 | 3 9 9 On Entrance 5 | . 8 8 Naked Turns . | . . . Heaviest Build 90 | 7 90 88 Greatest Support 26 | 16 16 26 Greatest Overweight (x) 8 | . 8 8 Average Overweight (x) 5 | . 5 7 Largest Inventory Capacity 25 | 5 25 25 Average Capacity 23 | 5 24 25 Most Carried 19 | 5 19 18 Average Carried 13 | 3 13 16 Final Capacity 25 | 5 25 25 Final Carried 18 | 5 18 17 Class Distribution -------------------- 100% | Mutant Dominant Class ---------------- Mutant | -10/Materials Mutant | -10/Subcaves Resources | -11 -10 -10 ----------- Run | Yrd Mat Sub Matter Collected 342 | 243 99 . Remotely . | . . . Salvage Created 134 | 15 119 . Parts 13 | 3 10 . Haulers Intercepted 1 | . 1 . Recyclers Shooed . | . . . Parts Field Recycled . | . . . Retrieved Matter . | . . . Parts Self-Destructed . | . . . Prevented . | . . . Kills | -11 -10 -10 ------- Run | Yrd Mat Sub Combat Hostiles Destroyed 3 | . 3 . Guns 3 | . 3 . Classes Destroyed 4 | 1 3 . Tunneler 1 | 1 . . Hauler 1 | . 1 . Swarmer 2 | . 2 . Grunt 1 | . 1 . Best Kill Streak 2 | 1 2 . Combat Bots Only 2 | . 2 . Max Kills in Single Turn 1 | 1 1 . Gunslinging . | . . . Exploded . | . . . Melee . | . . . Uniques/NPCs Destroyed . | . . . Combat | -11 -10 -10 -------- Run | Yrd Mat Sub Hostile Shots Fired 67 | . 65 2 Missed 26 | . 26 . Hits 41 | . 39 2 Projectile 41 | . 39 2 Critical Strikes 2 | . 2 . Damage Taken 776 | . 717 59 Core 262 | . 209 53 Absorbed by Shields . | . . . Redirected to Shielding 6 | . . 6 Core Remaining (%) 100 | 100 . . Volleys Fired 12 | 1 10 1 Largest 2 | 2 2 2 Hottest 100 | 90 100 60 Shots Fired 23 | 2 19 2 Gun 22 | 2 18 2 Cannon . | . . . Launcher . | . . . Special 1 | . 1 . Kinetic 6 | . 5 1 Thermal 17 | 2 14 1 Explosive . | . . . Electromagnetic . | . . . Robot Hit Streak 5 | 1 5 2 Robot Miss Streak 4 | . 4 . Penetration Max . | . . . Secondary Targets . | . . . Shots Hit Robots 13 | 1 10 2 Core Hits 7 | 1 6 . Critical Kills . | . . . Critical Parts Destroyed . | . . . Critical Strikes 1 | . 1 . Burn 1 | . 1 . Melee Attacks . | . . . Impact . | . . . Slashing . | . . . Piercing . | . . . Sneak Attacks . | . . . Combat Hostiles . | . . . Follow-up Attacks . | . . . Damage Inflicted 152 | 12 121 19 Guns 152 | 12 121 19 Cannons . | . . . Explosions . | . . . Melee . | . . . Ramming . | . . . Kinetic 32 | . 25 7 Thermal 120 | 12 96 12 Explosive . | . . . Electromagnetic . | . . . Impact . | . . . Slashing . | . . . Piercing . | . . . Highest Corruption . | . . . Average Corruption . | . . . Corruption Purged . | . . . Corruption Blocked . | . . . Overload Shots . | . . . Overflow Damage . | . . . Projectiles . | . . . Explosions . | . . . Melee . | . . . Knockbacks . | . . . Impact . | . . . Kinetic . | . . . Secondary . | . . . Self-Inflicted Damage . | . . . Shots . | . . . Rammed . | . . . Targets Rammed . | . . . Kicked . | . . . Crushed . | . . . Highest Temperature 90 | 30 90 . Average Temperature 22 | 17 23 . Received Heat Transfer 30 | . 12 18 Siege Activations . | . . . Martial Activations . | . . . Shielding Activations . | . . . Robots Disrupted . | . . . Combat Hostiles . | . . . Robots Corrupted . | . . . Combat Hostiles . | . . . Parts Fried . | . . . Impact Corruptions . | . . . Robots Melted . | . . . Combat Hostiles . | . . . Parts Melted . | . . . Heat Transferred 396 | 37 334 25 Parts Sabotaged . | . . . Parts Stolen . | . . . Parts Stripped . | . . . Power Chain Reactions . | . . . Alert | -11 -10 -10 ------- Run | Yrd Mat Sub Maximum Alert Level . | . . . Low Security (%) 100 | 100 100 . Level 1 . | . . . Level 2 . | . . . Level 3 . | . . . Level 4 . | . . . Level 5 . | . . . High Security . | . . . Max Security . | . . . Peak Influence 40 | 5 40 . Initial 3 | . 3 . Average 3 | . 3 . Influence Increases 108 | 5 103 . Destroy 0b10 Robot/C 60 | . 60 . Destroy 0b10 Robot/NC 10 | 5 5 . Destroy Leader 2 | . 2 . Successful Hack 21 | . 21 . Disable Machine 15 | . 15 . Influence Decreases 108 | . 108 . Entered New Map 2 | . 2 . Time Decay 106 | . 106 . Squads Dispatched 1 | . 1 . Investigation 1 | . 1 . Extermination . | . . . Reinforcement . | . . . Assault . | . . . Garrison . | . . . Intercept . | . . . Searches Triggered . | . . . Construction Impeded . | . . . Haulers Reinforced . | . . . Active Scanning Responses . | . . . Cargo Convoy Interrupts . | . . . Stealth | -11 -10 -10 --------- Run | Yrd Mat Sub Distress Signals . | . . . Communications Jammed . | . . . Distress Signals . | . . . Times Spotted 19 | . 18 1 Peak Tracking Total 5 | . 5 1 Tactical Retreats . | . . . Traps | -11 -10 -10 ------- Run | Yrd Mat Sub Traps Triggered 1 | . 1 . Indirectly . | . . . Trap Hack Attempts . | . . . Triggered . | . . . Disarmed . | . . . Reprogrammed . | . . . Reused . | . . . Traps Extracted . | . . . Installed . | . . . Triggered . | . . . Machines | -11 -10 -10 ---------- Run | Yrd Mat Sub Machines Disabled 1 | . 1 . Max in Single Turn 1 | . 1 . Machines Repaired . | . . . Machines Dismantled . | . . . Machines Sabotaged . | . . . Overloaded Fab Kills . | . . . Hacking | -11 -10 -10 --------- Run | Yrd Mat Sub Machines Accessed 5 | . 5 . Terminals 3 | . 3 . Fabricators . | . . . Repair Stations . | . . . Recycling Units 2 | . 2 . Scanalyzers . | . . . Garrison Access . | . . . Total Hacks 13 | . 13 . Successful 10 | . 10 . Failed 3 | . 3 . Catastrophic . | . . . Database Lockouts . | . . . Manual 10 | . 10 . Terminals 10 | . 10 . Fabricators . | . . . Repair Stations . | . . . Recycling Units 3 | . 3 . Scanalyzers . | . . . Garrison Access . | . . . Terminal Hacks 3 | . 3 . Robot Analysis 2 | . 2 . Branch Access Points 1 | . 1 . Fabricator Hacks . | . . . Repair Station Hacks . | . . . Recycling Unit Hacks 3 | . 3 . Report Inventory 2 | . 2 . Retrieve Components 1 | . 1 . Scanalyzer . | . . . Garrison Access Hacks . | . . . Unauthorized Hacks 4 | . 4 . Terminals 4 | . 4 . Botnet 3 | . 3 . Operators 1 | . 1 . Fabricators . | . . . Repair Stations . | . . . Recycling Units . | . . . Scanalyzers . | . . . Garrison Access . | . . . Data Cores Recovered . | . . . Used . | . . . Hacking Detections 3 | . 3 . Full Trace Events . | . . . Feedback Events . | . . . Feedback Blocked . | . . . Robot Schematics Acquired . | . . . Robots Built . | . . . Authchips . | . . . Time . | . . . Total Robot Build Rating . | . . . Part Schematics Acquired . | . . . Parts Built . | . . . Authchips . | . . . Time . | . . . Total Part Build Rating . | . . . Parts Repaired . | . . . Time . | . . . Parts Recycled . | . . . Recycled Matter . | . . . Retrieved Matter . | . . . Retrieved Components 2 | . 2 . Parts Scanalyzed . | . . . Part Schematics Acquired . | . . . Parts Damaged . | . . . Bothacking | -11 -10 -10 ------------ Run | Yrd Mat Sub Used RIF Installer . | . . . Robots Hacked . | . . . Non-combat . | . . . Combat . | . . . Robot Hacks Applied . | . . . Relay Couplers Released . | . . . Fabnet Peak Effective % . | . . . Robots Rewired . | . . . Allies Hacked . | . . . Hacks Repelled . | . . . Allies | -11 -10 -10 -------- Run | Yrd Mat Sub Total Allies . | . . . Largest Group . | . . . Highest-Rated Group . | . . . Highest-Rated Ally . | . . . Total Orders . | . . . Ally Attacks . | . . . Total Damage . | . . . Kills . | . . . Allies Corrupted . | . . . Allies Melted . | . . . Intel | -11 -10 -10 ------- Run | Yrd Mat Sub Active Infowar (turns) 1206 | 5 890 311 Terrain 1206 | 5 890 311 Robot Analysis Total 2 | . 2 . Derelict Logs Recovered 1 | . . 1 Drone Launches . | . . . Drone Recoveries . | . . . Exploration | -11 -10 -10 ------------- Run | Yrd Mat Sub Turns Passed 1260 | 56 890 314 Spaces Moved 618 | 41 470 107 Core 11 | 11 . . Treads . | . . . Legs . | . . . Wheels 607 | 30 470 107 Hover . | . . . Flight . | . . . Fastest Speed 50 | 50 100 135 Average Speed 171 | 86 174 190 Slowest Speed 200 | 100 200 200 Overloaded Moves . | . . . Propulsion Burnouts . | . . . Robots Hopped . | . . . Potential Cave-ins . | . . . Cave-ins Triggered . | . . . Exploration Rate (%) 24 | 4 62 8 Regions Visited 2 Branch Regions 1 Pre-discovered Areas . | . . . Known Exits Taken . | . . . Unknown Exits Taken 2 | 1 1 . Scrap Searched . | . . . Spaces Dug . | . . . Terrain Destroyed . | . . . Melee . | . . . Projectile . | . . . AOE . | . . . Terrain Rammed . | . . . Walls Destroyed . | . . . Machines Disabled . | . . . Actions | -11 -10 -10 --------- Run | Yrd Mat Sub Total 793 | 59 519 215 Wait 115 | 2 14 99 Move 616 | 40 469 107 Hop . | . . . Pick Up 29 | 10 18 1 Fast Attach 2 | 1 1 . Attach 12 | 5 4 3 Detach 1 | . . 1 Swap 5 | . 2 3 Drop 1 | . 1 . Fire 12 | 1 10 1 Melee . | . . . Ram . | . . . Kick . | . . . Crush . | . . . Escape Stasis . | . . . Rewire . | . . . Trap . | . . . Miscellaneous . | . . . Route ------- -11/Scrapyard -10/Materials (discovered 5 exits: [*Mat x2] / *Min x2 / [*Sub]) -10/Subcaves History --------- Turn | Location | Event 7 | -11/Scrapyard | Discovered new exit (range 15) 57 | -11/Scrapyard | Entered Materials 318 | -10/Materials | Build established: Mutant 398 | -10/Materials | Discovered new exit (range 8) 437 | -10/Materials | Discovered new exit (range 4) 558 | -10/Materials | Discovered new exit (range 4) 657 | -10/Materials | Derelicts attacked the area 699 | -10/Materials | Identified exit to Mines 748 | -10/Materials | Discovered new exit (range 3) 885 | -10/Materials | Core integrity fell below 50% 929 | -10/Materials | Lost 4 parts (1p1n2w) 931 | -10/Materials | Discovered new exit (range 9) 934 | -10/Materials | Core integrity fell below 20% 947 | -10/Materials | Entered Subcaves 980 | -10/Subcaves | A swath of the cavern ceiling suddenly collapsed 1017 | -10/Subcaves | Learned 2 Materials zone layouts 1148 | -10/Subcaves | Shifting Twisted Machinery released Riot Gun 1261 | -10/Subcaves | Destroyed by ZK-SVK(R) with Subdweller Beam Cannon Last Messages --------------- 00875_ Acquired Structural Scanner. 00876_ Acquired 23 matter. 00877_ Assault Rifle destroyed. 00882_ Com. Wheel destroyed. 00883_ Recycling Unit disabled. 00886_ Ion Engine destroyed. 00889_ K-01 Serf collects debris. 00898_ Med. Laser destroyed. 00918_ Acquired Lgt. Ion Engine. 00931_ EXIT=FOUND 00934_ R-06 Scavenger collects Structural Scanner. 00934_ R-06 Scavenger destroyed. LOCATION=UNKNOWN AMBIENT_HEAT=-10 GOAL=ESCAPE A swath of the cavern ceiling suddenly collapses. 01017_ Acquired derelict log, extracted data. Data stored: Materials zone layouts (x2). Riot Gun falls loose from the Twisted Machinery. 01161_ Acquired Riot Gun. Map ----- +----------------------------------------------------+ | ??????????????????????##?#?????#???????#???????#?? | | ??????????????????????????????????##??#????#??#??? | | ?????????????????????????????????####?#?####???#?? | | ???????????????????????#???????### ##?## ##????? | | ??????????????????? ?????? ???## ### #??##? | | ??????????????????????#???????# #????? | | ???????????????????????#? ????# #????? | | ??????????????????????? ?% #??########### ##?#?? | | ???????????????????"????? ?????????##### ##??? | | ?????????????????????????? ???????## #?#? | | ????????????????????????? ? ???#?### #??# | | ????????????????????"??? ??? ? ????# ### #?#? | | ???????????????????????#?? ? ?#??# # ###?? | | ??????????????????????? ??? % ?### # ##### | | ??????????????????????????# #? # ## | | ?????????????????????????## ### # ### | | ???????????????????#?????# ## ## | | ???????????????????????#?# ## # ### | | ?????????????????????????# # #?## ## | | ???????????????????#??#???# ## #### ##### | | ??????????????????#??????## ## #???#### | | ?????????????????????????# #####?#? | | ????????????????????????## ## """#??? | | ??????????#?????????????## ## " """"#?? | | ??????????# # ???#####??# """ #?? | | ????????### " "?## ####@ ### """"" ##?? | | ????????# # #R ### "" """####??? | | ???????# ## ## "" "##?????? | | ???????# ####?#????? | | ???????# # ### ###### ##????####?? | | ??????# ####?###????# ## ##??"" """ | | ?????#" ### ###?????????# ## ## "" "? | | ???????????## #??????#????# ## ##? ?? | | ????????????# ## ????????????# ### ###????? | | ????????????##?##???????##???## ### ###??????? | | ??????????????????????????????##??#### ##??#?#???? | | ??????????????????????#?????#?????????###??????#?? | | ??????????????????????????#?????????????#????#???? | | ???????????????????##?????????????????????????#??? | | ??????????????????#?????????#???????#????????????? | | ????????????????????????#??????????#?????????????? | | ??????????????????????????????#????????????????#?? | | ?????????????????????#???????????????????????????? | | ?????????????????????#?????????????????#?????????? | | ???????????????????????????????#?????????????????? | | ?????????????????????????????????????????????????? | | ?????????????????????????????????????????????????? | | ???????????????????????????????????????????#?????? | | ?????????????????????????????????????????????????? | | ?????????????????????????????????????????????????? | +----------------------------------------------------+ Best States ------------- Heat Dissipation 25 Energy Generation 10 Energy Capacity 250 Matter Stores 300 Matter Capacity 300 Sight Range 16 Terrain Scan Range 16 Terrain Scan Density 10 Core Shielding 20 Evasion (%) 50 Recoil Reduction 2 Item Schematics ----------------- None Robot Schematics ------------------ None Fabricated ------------ Nothing Repaired ---------- Nothing Alien Tech Used ----------------- None Achievements -------------- None Challenges ------------ None Game ------ Seed WarpPhasingFacilitator Manual? 0 Play Time 00:21:47 Cumulative 225.4 hours Start 2025.07.27 @ 11:20:41 End 2025.07.27 @ 11:43:25 Sessions 1 Manual Loads 0 Difficulty Rogue Special Mode None Game No. 144 Rogue 144 Adventurer 0 Explorer 0 Win Type - Total 5 Types 3/0/1/1/0/0/0/0/0/0 Lore% 62 Gallery% 58 Achievement% 52 Wizard Run 0 Options --------- Layout 2 ASCII 0 Keyboard 0 Movement Mouse Keybinds 0 Fullscreen 1 Font 48/Smallcaps Map View 55x44 Zoom Use 11% Tactical HUD 1 Map Filters NONE Filters NONE Steam 1 RUN: 7a3b2c46-3a0a-41af-b85d-05784c8aed44